Cogmind - Beta 16.1 @@@ ROGUE MODE // 2026.03.06 @ 16:00:31 Player: Moleculor Result: Destroyed by D-53 Grenadier with Mini Grenade Launcher Performance ------------- Evolutions (0) 0 Regions Visited (2) 400 Robots Destroyed (26) 130 Value Destroyed (449) 449 Prototype IDs (2) 40 Alien Tech Used (0) 0 Bonus (0) 0 TOTAL SCORE: 1019 Bonus ------- None Cogmind --------- Core Integrity 0/250 Matter 261/300 Energy 100/100 System Corruption 5% Temperature Cool (49) Movement Core (150) Ox2 Location -10/Mines Parts ------- > --- POWER (1) -------- (None) > --- PROPULSION (2) --- (None) > --- UTILITY (2) ------ Small Storage Unit > --- WEAPON (2) ------- Medium Laser > --- INVENTORY (8) ---- Ion Engine Light Ion Engine Aluminum Leg Experimental Sensor Array Light Assault Rifle Grenade Launcher Datajack Peak State ------------ > --- POWER ------------ Light Angular Momentum Engine > --- PROPULSION ------- Aluminum Leg Carbon-fiber Leg > --- UTILITY ---------- Small Storage Unit Visual Processing Unit > --- WEAPON ----------- Medium Laser Assault Rifle > --- INVENTORY -------- Ion Engine Light Ion Engine Aluminum Leg Experimental Sensor Array Medium Laser Light Assault Rifle Grenade Launcher Datajack [Rating: 15] Favorites ----------- Power Light Ion Engine Engine Light Ion Engine Propulsion Aluminum Leg Leg Aluminum Leg Utility Small Storage Unit Storage Small Storage Unit Processor Visual Processing Unit Weapon Medium Laser Energy Gun Medium Laser Ballistic Gun Assault Rifle Launcher Grenade Launcher Build | -11 -10 -10 ------- Run | Yrd Mat Min Slots Evolved . | . . . Power . | . . . Propulsion . | . . . Utility . | . . . Weapon . | . . . Parts Attached 16 | 5 5 6 Power 3 | 1 . 2 Engine 3 | 1 . 2 Core . | . . . Reactor . | . . . Propulsion 5 | 2 . 3 Treads . | . . . Leg 5 | 2 . 3 Wheel . | . . . Hover . | . . . Flight . | . . . Utility 3 | 1 2 . Device . | . . . Storage 2 | 1 1 . Processor 1 | . 1 . Hackware . | . . . Protection . | . . . Artifact . | . . . Weapon 5 | 1 3 1 Energy Gun 2 | . 1 1 Energy Cannon . | . . . Ballistic Gun 2 | 1 1 . Ballistic Cannon . | . . . Launcher 1 | . 1 . Special Weapon . | . . . Impact Weapon . | . . . Slashing Weapon . | . . . Piercing Weapon . | . . . Special Melee Weapon . | . . . Unidentified Prototypes . | . . . Parts Lost 7 | . . 7 Power 2 | . . 2 Propulsion 2 | . . 2 Utility 1 | . . 1 Weapon 2 | . . 2 Highest Loss Streak 6 | . . 6 To Critical Strikes . | . . . Average Backups 5 | 1 3 6 Power 1 | . 1 1 Propulsion . | . . . Utility . | . . . Weapon 2 | . 2 2 Tool/Special . | . . . Unused Backups 3 | . . 3 Power 1 | . . 1 Propulsion . | . . . Utility 1 | . . 1 Weapon . | . . . Tool/Special 1 | . . 1 Average Slot Usage (%) 96 | . 91 99 Engine 13 | . 14 13 Leg 27 | . 27 27 Storage 14 | . 14 14 Processor 11 | . 7 14 Energy Gun 11 | . 6 14 Ballistic Gun 7 | . 7 7 Launcher 8 | . 13 6 Peak Build Rating 15 | 5 8 15 Average Rating 8 | 3 6 10 On Entrance 4 | . 5 8 Avg Prop Armor Cover (%) . | . . . Naked Turns . | . . . Heaviest Build 19 | 10 13 19 Greatest Support 25 | 20 20 25 Greatest Overweight (x) 3 | 3 . 1 Average Overweight (x) . | . . . Largest Inventory Capacity 25 | 8 25 8 Average Capacity 8 | 7 8 8 Most Carried 8 | 2 6 8 Average Carried 5 | 1 3 6 Final Capacity 8 | 8 8 8 Final Carried 7 | 2 5 7 Class Distribution -------------------- 86% | Mutant 13% | Scavenger-Mutant Dominant Class ---------------- Mutant | -10/Materials Mutant | -10/Mines Resources | -11 -10 -10 ----------- Run | Yrd Mat Min Matter Collected 618 | 241 59 318 Remotely . | . . . Salvage Created 596 | . 146 450 Parts 49 | . 19 30 Haulers Intercepted . | . . . Recyclers Shooed 3 | . 1 2 Parts Field Recycled . | . . . Retrieved Matter . | . . . Parts Self-Destructed . | . . . Prevented . | . . . Parts Restored . | . . . Kills | -11 -10 -10 ------- Run | Yrd Mat Min Combat Hostiles Destroyed 20 | . 5 15 Guns 10 | . . 10 AOE 10 | . 5 5 Classes Destroyed 10 | . 7 3 Worker 2 | . 1 1 Builder 2 | . 2 . Tunneler 1 | . . 1 Recycler 3 | . 1 2 Operator 1 | . 1 . Watcher 1 | . 1 . Swarmer 9 | . 3 6 Grunt 6 | . 2 4 Demolisher 1 | . . 1 Assembled 4 | . . 4 Best Kill Streak 9 | . 9 6 Combat Bots Only 5 | . 5 5 Max Kills in Single Turn 3 | . 3 2 Gunslinging . | . . . Exploded 2 | . 2 2 Melee . | . . . Uniques/NPCs Destroyed . | . . . Combat | -11 -10 -10 -------- Run | Yrd Mat Min Hostile Shots Fired 88 | . 15 73 Missed 20 | . 2 18 Hits 68 | . 13 55 Melee 7 | . . 7 Projectile 61 | . 13 48 AOE 6 | . . 6 Critical Strikes 1 | . 1 . Damage Taken 1005 | . 113 892 Core 256 | . 11 245 Absorbed by Shields . | . . . Regen/Repaired (Parts) 47 | . 47 . Core Remaining (%) 100 | 100 . . Volleys Fired 50 | . 14 36 Largest 2 | . 2 2 Hottest 80 | . 50 80 Shots Fired 85 | . 24 61 Gun 69 | . 14 55 Cannon . | . . . Launcher 16 | . 10 6 Special . | . . . Kinetic 34 | . 14 20 Thermal 35 | . . 35 Explosive 16 | . 10 6 Electromagnetic . | . . . Robot Hit Streak 6 | . 3 6 Robot Miss Streak 4 | . 3 4 Penetration Max . | . . . Secondary Targets . | . . . Shots Hit Robots 36 | . 6 30 Core Hits 54 | . 20 34 Critical Kills . | . . . Critical Parts Destroyed 1 | . . 1 Critical Strikes 2 | . . 2 Burn 1 | . . 1 Destroy 1 | . . 1 Melee Attacks . | . . . Impact . | . . . Slashing . | . . . Piercing . | . . . Sneak Attacks . | . . . Combat Hostiles . | . . . Follow-up Attacks . | . . . Damage Inflicted 1420 | . 605 815 Guns 438 | . 52 386 Cannons . | . . . Explosions 982 | . 553 429 Melee . | . . . Ramming . | . . . Kinetic 218 | . 52 166 Thermal 220 | . . 220 Explosive 982 | . 553 429 Electromagnetic . | . . . Impact . | . . . Slashing . | . . . Piercing . | . . . Highest Corruption 5 | . . 5 Average Corruption 5 | . . 5 Corruption Purged . | . . . Corruption Blocked . | . . . Overload Shots . | . . . Overflow Damage . | . . . Projectiles . | . . . Explosions . | . . . Melee . | . . . Knockbacks . | . . . Impact . | . . . Kinetic . | . . . Secondary . | . . . Self-Inflicted Damage . | . . . Shots . | . . . Rammed . | . . . Targets Rammed . | . . . Kicked . | . . . Crushed . | . . . Highest Temperature 72 | . 2 72 Average Temperature 23 | . 2 24 Received Heat Transfer 110 | . 18 92 Siege Activations . | . . . Martial Activations . | . . . Shielding Activations . | . . . Robots Disrupted . | . . . Combat Hostiles . | . . . Robots Corrupted . | . . . Combat Hostiles . | . . . Parts Fried . | . . . Impact Corruptions . | . . . Robots Melted . | . . . Combat Hostiles . | . . . Parts Melted 1 | . . 1 Heat Transferred 740 | . . 740 Parts Sabotaged . | . . . Parts Stolen . | . . . Parts Stripped . | . . . Power Chain Reactions . | . . . Alert | -11 -10 -10 ------- Run | Yrd Mat Min Maximum Alert Level . | . . . Low Security (%) 100 | 100 100 100 Level 1 . | . . . Level 2 . | . . . Level 3 . | . . . Level 4 . | . . . Level 5 . | . . . High Security . | . . . Max Security . | . . . Peak Influence 178 | . 178 93 Initial 37 | . . 37 Average 58 | . 112 39 Influence Increases 538 | . 229 309 Destroy 0b10 Robot/C 320 | . 100 220 Destroy 0b10 Robot/NC 50 | . 30 20 Destroy Leader 52 | . 22 30 Successful Hack 5 | . 5 . Disable Machine 30 | . 30 . Destroy Structure 81 | . 42 39 Influence Decreases 535 | . 131 404 Entered New Map 61 | . . 61 Time Decay 404 | . 131 273 Lost Part 70 | . . 70 Squads Dispatched 2 | . 1 1 Investigation . | . . . Extermination . | . . . Reinforcement 1 | . 1 . Assault 1 | . . 1 Garrison . | . . . Intercept . | . . . Searches Triggered . | . . . Construction Impeded . | . . . Haulers Reinforced . | . . . Active Scanning Responses . | . . . Cargo Convoy Interrupts . | . . . Stealth | -11 -10 -10 --------- Run | Yrd Mat Min Distress Signals . | . . . Communications Jammed . | . . . Distress Signals . | . . . Times Spotted 40 | . 8 32 Peak Tracking Total 8 | . 4 8 Tactical Retreats 1 | . . 1 Traps | -11 -10 -10 ------- Run | Yrd Mat Min Traps Triggered . | . . . Indirectly . | . . . Trap Hack Attempts . | . . . Triggered . | . . . Disarmed . | . . . Reprogrammed . | . . . Reused . | . . . Traps Extracted . | . . . Installed . | . . . Triggered . | . . . Machines | -11 -10 -10 ---------- Run | Yrd Mat Min Machines Disabled 2 | . 2 . Max in Single Turn 1 | . 1 . Machines Repaired . | . . . Machines Dismantled . | . . . Machines Sabotaged . | . . . Overloaded Fab Kills . | . . . Hacking | -11 -10 -10 --------- Run | Yrd Mat Min Machines Accessed 2 | . 2 . Terminals 1 | . 1 . Fabricators . | . . . Repair Stations 1 | . 1 . Recycling Units . | . . . Scanalyzers . | . . . Garrison Access . | . . . Total Hacks 8 | . 8 . Successful 3 | . 3 . Failed 5 | . 5 . Catastrophic . | . . . Database Lockouts . | . . . Manual . | . . . Terminals 5 | . 5 . Fabricators . | . . . Repair Stations 3 | . 3 . Recycling Units . | . . . Scanalyzers . | . . . Garrison Access . | . . . Terminal Hacks 1 | . 1 . Prototype ID Bank 1 | . 1 . Fabricator Hacks . | . . . Repair Station Hacks 2 | . 2 . Scan Component 1 | . 1 . Repair 1 | . 1 . Recycling Unit Hacks . | . . . Scanalyzer . | . . . Garrison Access Hacks . | . . . Unauthorized Hacks . | . . . Terminals . | . . . Fabricators . | . . . Repair Stations . | . . . Recycling Units . | . . . Scanalyzers . | . . . Garrison Access . | . . . Data Cores Recovered . | . . . Used . | . . . Hacking Detections 2 | . 2 . Full Trace Events 2 | . 2 . Feedback Events . | . . . Feedback Blocked . | . . . Robot Schematics Acquired . | . . . Robots Built . | . . . Authchips . | . . . Time . | . . . Total Robot Build Rating . | . . . Part Schematics Acquired . | . . . Parts Built . | . . . Authchips . | . . . Time . | . . . Total Part Build Rating . | . . . Part Studies Acquired . | . . . Parts Repaired 1 | . 1 . Time 26 | . 26 . Parts Recycled . | . . . Recycled Matter . | . . . Retrieved Matter . | . . . Retrieved Components . | . . . Parts Scanalyzed . | . . . Part Schematics Acquired . | . . . Parts Damaged . | . . . Bothacking | -11 -10 -10 ------------ Run | Yrd Mat Min Used RIF Installer . | . . . Robots Hacked . | . . . Non-combat . | . . . Combat . | . . . Robot Hacks Applied . | . . . Relay Couplers Released . | . . . Fabnet Peak Effective % . | . . . Robots Rewired . | . . . Allies Hacked . | . . . Hacks Repelled . | . . . Allies | -11 -10 -10 -------- Run | Yrd Mat Min Total Allies . | . . . Largest Group . | . . . Highest-Rated Group . | . . . Highest-Rated Ally . | . . . Total Orders . | . . . Ally Attacks . | . . . Total Damage . | . . . Kills . | . . . Allies Corrupted . | . . . Allies Melted . | . . . Intel | -11 -10 -10 ------- Run | Yrd Mat Min Active Infowar (turns) 767 | . 154 613 Optics 767 | . 154 613 Robot Analysis Total . | . . . Derelict Logs Recovered 1 | . . 1 Drone Launches . | . . . Drone Recoveries . | . . . Exploration | -11 -10 -10 ------------- Run | Yrd Mat Min Turns Passed 978 | 69 295 614 Spaces Moved 622 | 45 179 398 Core 11 | 11 . . Treads . | . . . Legs 611 | 34 179 398 Wheels . | . . . Hover . | . . . Flight . | . . . Fastest Speed 50 | 50 120 120 Average Speed 120 | 127 120 120 Slowest Speed 200 | 200 120 190 Overloaded Moves . | . . . Propulsion Burnouts . | . . . Robots Hopped . | . . . Potential Cave-ins . | . . . Cave-ins Triggered . | . . . Exploration Rate (%) 38 | 3 43 68 Regions Visited 2 Branch Regions 1 Pre-discovered Areas . | . . . Known Exits Taken . | . . . Unknown Exits Taken 2 | 1 1 . Scrap Searched . | . . . Spaces Dug . | . . . Terrain Destroyed 80 | . 40 40 Melee . | . . . Projectile . | . . . AOE 80 | . 40 40 Terrain Rammed . | . . . Walls Destroyed . | . . . Machines Disabled . | . . . Actions | -11 -10 -10 --------- Run | Yrd Mat Min Total 760 | 56 233 471 Wait 46 | . 26 20 Move 620 | 44 178 398 Hop . | . . . Pick Up 18 | 7 7 4 Fast Attach . | . . . Attach 10 | 5 3 2 Detach . | . . . Swap 13 | . 4 9 Drop 3 | . 1 2 Fire 50 | . 14 36 Melee . | . . . Ram . | . . . Kick . | . . . Crush . | . . . Escape Stasis . | . . . Rewire . | . . . Trap . | . . . Miscellaneous . | . . . Route ------- -11/Scrapyard -10/Materials -10/Mines (discovered 2 exits: [*Mat x2]) History --------- Turn | Location | Event 16 | -11/Scrapyard | Discovered new exit (range 16) 70 | -11/Scrapyard | Entered Materials 304 | -10/Materials | Discovered new exit (range 8) 311 | -10/Materials | Build established: Mutant 346 | -10/Materials | Repaired Aluminum Leg 365 | -10/Materials | Entered Mines 568 | -10/Mines | Found a damaged Exp. Sensor Array with a note attached 570 | -10/Mines | Found Prototype Device 709 | -10/Mines | Discovered new exit (range 8) 767 | -10/Mines | Met a Derelict testing a Signal Generator 807 | -10/Mines | Discovered new exit (range 7) 915 | -10/Mines | Assembled infested the area 972 | -10/Mines | Core integrity fell below 50% 978 | -10/Mines | Core integrity fell below 20% 979 | -10/Mines | Destroyed by D-53 Grenadier with Mini Grenade Launcher Last Messages --------------- payload. D-53 Grenadier unfolds itself. as-79623 destroyed. as-51145 destroyed. as-28625 destroyed. U-05 Engineer lays Concrete. as-94848 destroyed. as-72433 destroyed. Aluminum Leg destroyed. The unstable cave ceiling collapses. U-05 Engineer lays Concrete. D-53 Grenadier destroyed. U-05 Engineer builds a Wall. as-27297 destroyed. The unstable cave ceiling collapses. Assault Rifle destroyed. U-05 Engineer lays Concrete. Visual Processing Unit destroyed. U-05 Engineer lays Concrete. Lgt. Angular Momentum Engine destroyed. Map ----- +----------------------------------------------------+ | #?####??????# #### #?????????????????????? | | #???????????# #?????????????????????? | | #???????????##### ####???????????????????? | | ####????????????# ## ???????????????????? | | ## ##???????????# ## #???????????????????? | | #???????????# ## #???????????????????? | | """ #???????????# ## #???????????????????? | | """ #???#####???# ## #???????????????????? | | """ ##??# ##### ## #????????? ?????????? | | #### #???????? #???????? | | # ######## #???????# #???????? | | # #??????# #??????# #???????? | | # ####### #??????# #?????? ! ????????? | | # #????# #??????# #?????? #????????? | | # #????# ##?????# #????? ##???????? | | #????## ##????# #????? #???????? | | ###?????## #????# #????? ##??#???? | | #????????#### #????# #????# ## #???? | | #???????????####????# #???# # #???? | | ???????????????????## #### ????? | | ???????????????????# ## # #?????? | | ???????????????????# # % #?????? | | #????????????????###duu a #?????? | | ##???????????????# % #?????? | | #???????????????# = #??????? | | ##???????????????# ## @a #???????????? | | #????????????????# ?# #???????????? | | ?????????????????# ?# ????????? | | ????????????????? ??## a a #?????? | | ?????????????????#???## # ### a #????? | | ??????????????????????### #??# a<#???? | | ????????????????????????# #???##### #???? | | ????????????????????????# #????????? #???? | | ????????????????????????# ??????????? #??? | | ????????????????????????? ???????????????? | | ????????????????????????? #???????????????? | | ????????????????????????? ????????????????? | | ????????????????????????? ????????????????? | | ????????????????????????? ????????????????? | | ?????????????????????????#????????????????? | | ??????????????????????????????????????????? | | ??????????????????????????????????????????? | | | | | | | | | | | | | | | | | +----------------------------------------------------+ Best States ------------- Heat Dissipation 25 Energy Generation 18 Energy Capacity 250 Matter Stores 300 Matter Capacity 300 Sight Range 18 Terrain Scan Density 10 Evasion (%) 55 Item Schematics ----------------- None Robot Schematics ------------------ None Fabricated ------------ Nothing Repaired ---------- Aluminum Leg | 47% | -10/Materials Studied --------- None Alien Tech Used ----------------- None Achievements -------------- Spot Them First Challenges ------------ None Game ------ Seed FlightSalvageRailgun Manual? 0 Play Time 00:14:49 Cumulative 8.8 hours Start 2026.03.06 @ 15:47:47 End 2026.03.06 @ 16:00:31 Sessions 1 Manual Loads 0 Difficulty Rogue Special Mode None Game No. 9 Rogue 9 Adventurer 0 Explorer 0 Win Type - Total 0 Types 0/0/0/0/0/0/0/0/0/0 Lore% 8 Gallery% 10 Achievement% 7 Wizard Run 0 Options --------- Layout 1 ASCII 0 Keyboard 0 Movement Mouse Keybinds 0 Fullscreen 1 Font 24/Smallcaps Map View 50x35 Zoom Use 0% Tactical HUD 0 Map Filters NONE Filters NONE Steam 1 RUN: 6fa5483d-fe69-4ce0-a7ba-409789f92b6f